[Event "Titled Tuesday Blitz August 08 Late 2023"]
[White "Golubev, Mikhail"]
[Black "Prithu Gupta"]
[WhiteFideId "14100983"]
[BlackFideId "46618546"]
[WhiteElo "2627"]
[BlackElo "2476"]
[Result "0-1"]
[Round "8"]
[TimeControl "180+1"]
[Date "2023.08.08"]
[WhiteClock "0:00:00"]
[BlackClock "0:00:04"]
[Board "40"]

1. e4 {[%clk 0:03:00]}  e5 {[%clk 0:02:59]} 2. Nf3 {[%clk 0:03:00]}  Nc6 {[%clk 0:02:59]} 3. Bc4 {[%clk 0:03:00]}  Nf6 {[%clk 0:02:59]} 4. Ng5 {[%clk 0:03:00]}  d5 {[%clk 0:02:58]} 5. exd5 {[%clk 0:03:00]}  Na5 {[%clk 0:02:59]} 6. Bb5+ {[%clk 0:03:00]}  Bd7 {[%clk 0:02:59]} 7. Qe2 {[%clk 0:02:58]}  Be7 {[%clk 0:02:59]} 8. Bxd7+ {[%clk 0:02:39]}  Qxd7 {[%clk 0:02:44]} 9. Qxe5 {[%clk 0:02:21]}  O-O {[%clk 0:02:38]} 10. O-O {[%clk 0:01:44]}  Ng4 {[%clk 0:02:38]} 11. Qc3 {[%clk 0:01:06]}  Bxg5 {[%clk 0:02:14]} 12. h3 {[%clk 0:01:06]}  Qxd5 {[%clk 0:01:55]} 13. hxg4 {[%clk 0:01:03]}  Nc6 {[%clk 0:01:56]} 14. Qf3 {[%clk 0:00:31]}  Qxf3 {[%clk 0:01:55]} 15. gxf3 {[%clk 0:00:32]}  Nd4 {[%clk 0:01:56]} 16. Na3 {[%clk 0:00:32]}  f5 {[%clk 0:01:48]} 17. Kg2 {[%clk 0:00:27]}  Rae8 {[%clk 0:01:37]} 18. d3 {[%clk 0:00:21]}  Bxc1 {[%clk 0:01:23]} 19. Raxc1 {[%clk 0:00:21]}  fxg4 {[%clk 0:01:08]} 20. fxg4 {[%clk 0:00:22]}  Nf3 {[%clk 0:01:08]} 21. Nc4 {[%clk 0:00:14]}  Re6 {[%clk 0:01:01]} 22. Ne3 {[%clk 0:00:09]}  Rg6 {[%clk 0:00:50]} 23. Kg3 {[%clk 0:00:08]}  h5 {[%clk 0:00:47]} 24. Rh1 {[%clk 0:00:06]}  hxg4 {[%clk 0:00:34]} 25. Rh5 {[%clk 0:00:06]}  Nd4 {[%clk 0:00:14]} 26. Rch1 {[%clk 0:00:04]}  Rf3+ {[%clk 0:00:08]} 27. Kg2 {[%clk 0:00:04]}  c6 {[%clk 0:00:04]} 28. Rh8+ {[%clk 0:00:03]}  Kf7 {[%clk 0:00:04]} 29. Rb8 {[%clk 0:00:03]}  b5 {[%clk 0:00:04]} 30. Rb7+ {[%clk 0:00:03]}  Ke6 {[%clk 0:00:04]} 31. Nxg4 {[%clk 0:00:00]}  Rf4 {[%clk 0:00:04]} 0-1


[Site "https://www.chess.com"]

[Event "Titled Tuesday Blitz August 08 Late 2023"]
[White "Santos Flores, Alberto"]
[Black "Tristan, Leonardo"]
[WhiteFideId "3601234"]
[BlackFideId "113816"]
[WhiteElo "2551"]
[BlackElo "2776"]
[Result "1/2-1/2"]
[Round "8"]
[TimeControl "180+1"]
[Date "2023.08.08"]
[WhiteClock "0:00:09"]
[BlackClock "0:00:14"]
[Board "43"]

1. e4 {[%clk 0:03:00]}  d5 {[%clk 0:03:00]} 2. exd5 {[%clk 0:03:00]}  Qxd5 {[%clk 0:03:01]} 3. Nf3 {[%clk 0:02:59]}  Bg4 {[%clk 0:03:00]} 4. Be2 {[%clk 0:03:00]}  Nc6 {[%clk 0:02:59]} 5. d4 {[%clk 0:03:00]}  O-O-O {[%clk 0:02:59]} 6. Be3 {[%clk 0:03:00]}  e5 {[%clk 0:02:58]} 7. c4 {[%clk 0:03:00]}  Bb4+ {[%clk 0:02:59]} 8. Nbd2 {[%clk 0:02:59]}  Qa5 {[%clk 0:02:47]} 9. d5 {[%clk 0:02:59]}  Bxf3 {[%clk 0:02:47]} 10. Bxf3 {[%clk 0:02:59]}  Nd4 {[%clk 0:02:47]} 11. a3 {[%clk 0:02:46]}  Bxd2+ {[%clk 0:02:17]} 12. Bxd2 {[%clk 0:02:43]}  Qa6 {[%clk 0:02:17]} 13. Be2 {[%clk 0:02:31]}  Nf6 {[%clk 0:02:16]} 14. Bc3 {[%clk 0:02:23]}  Rhe8 {[%clk 0:02:08]} 15. Bxd4 {[%clk 0:02:15]}  exd4 {[%clk 0:02:08]} 16. O-O {[%clk 0:02:15]}  Kb8 {[%clk 0:02:03]} 17. Re1 {[%clk 0:02:08]}  Qb6 {[%clk 0:01:58]} 18. b4 {[%clk 0:02:04]}  Ne4 {[%clk 0:01:58]} 19. Bd3 {[%clk 0:01:47]}  f5 {[%clk 0:01:49]} 20. Qf3 {[%clk 0:01:30]}  Qg6 {[%clk 0:01:23]} 21. Qf4 {[%clk 0:01:17]}  Ng5 {[%clk 0:00:26]} 22. Kf1 {[%clk 0:01:06]}  Rf8 {[%clk 0:00:13]} 23. Qxd4 {[%clk 0:00:54]}  Qh6 {[%clk 0:00:13]} 24. Qf4 {[%clk 0:00:50]}  Rf6 {[%clk 0:00:13]} 25. h4 {[%clk 0:00:50]}  Nf7 {[%clk 0:00:13]} 26. Qxh6 {[%clk 0:00:49]}  Nxh6 {[%clk 0:00:13]} 27. Re7 {[%clk 0:00:47]}  Ng4 {[%clk 0:00:14]} 28. Rxg7 {[%clk 0:00:39]}  Ne5 {[%clk 0:00:14]} 29. Be2 {[%clk 0:00:38]}  h6 {[%clk 0:00:14]} 30. f4 {[%clk 0:00:37]}  Nf7 {[%clk 0:00:13]} 31. Re1 {[%clk 0:00:35]}  Nd6 {[%clk 0:00:14]} 32. Bd3 {[%clk 0:00:34]}  c6 {[%clk 0:00:13]} 33. c5 {[%clk 0:00:31]}  Ne8 {[%clk 0:00:13]} 34. Rge7 {[%clk 0:00:31]}  Nc7 {[%clk 0:00:12]} 35. d6 {[%clk 0:00:30]}  Nd5 {[%clk 0:00:12]} 36. Re8 {[%clk 0:00:29]}  Kc8 {[%clk 0:00:12]} 37. Rxd8+ {[%clk 0:00:29]}  Kxd8 {[%clk 0:00:13]} 38. g3 {[%clk 0:00:29]}  b6 {[%clk 0:00:13]} 39. Bc4 {[%clk 0:00:28]}  Nc3 {[%clk 0:00:11]} 40. Re7 {[%clk 0:00:26]}  bxc5 {[%clk 0:00:09]} 41. bxc5 {[%clk 0:00:26]}  Ne4 {[%clk 0:00:10]} 42. Rxa7 {[%clk 0:00:24]}  Nxc5 {[%clk 0:00:11]} 43. Rf7 {[%clk 0:00:18]}  Rxd6 {[%clk 0:00:11]} 44. Rxf5 {[%clk 0:00:17]}  Ne4 {[%clk 0:00:11]} 45. Kg2 {[%clk 0:00:15]}  Rd4 {[%clk 0:00:05]} 46. Bf7 {[%clk 0:00:13]}  c5 {[%clk 0:00:05]} 47. Re5 {[%clk 0:00:12]}  c4 {[%clk 0:00:03]} 48. Bg6 {[%clk 0:00:09]}  Nd2 {[%clk 0:00:02]} 49. f5 {[%clk 0:00:08]}  Rd6 {[%clk 0:00:03]} 50. h5 {[%clk 0:00:08]}  c3 {[%clk 0:00:03]} 51. Rc5 {[%clk 0:00:08]}  Ne4 {[%clk 0:00:03]} 52. Rc4 {[%clk 0:00:08]}  Nf6 {[%clk 0:00:02]} 53. Rxc3 {[%clk 0:00:08]}  Ke7 {[%clk 0:00:02]} 54. Rc7+ {[%clk 0:00:08]}  Kd8 {[%clk 0:00:02]} 55. Rf7 {[%clk 0:00:07]}  Ne4 {[%clk 0:00:02]} 56. g4 {[%clk 0:00:07]}  Rd2+ {[%clk 0:00:02]} 57. Kf3 {[%clk 0:00:07]}  Ng5+ {[%clk 0:00:02]} 58. Kf4 {[%clk 0:00:07]}  Nxf7 {[%clk 0:00:03]} 59. Bxf7 {[%clk 0:00:08]}  Ke7 {[%clk 0:00:04]} 60. Bg6 {[%clk 0:00:08]}  Kf6 {[%clk 0:00:04]} 61. Ke4 {[%clk 0:00:07]}  Ra2 {[%clk 0:00:03]} 62. Kf4 {[%clk 0:00:06]}  Rxa3 {[%clk 0:00:04]} 63. Ke4 {[%clk 0:00:06]}  Ra4+ {[%clk 0:00:04]} 64. Kf3 {[%clk 0:00:06]}  Kg5 {[%clk 0:00:05]} 65. Ke3 {[%clk 0:00:06]}  Ra3+ {[%clk 0:00:03]} 66. Ke4 {[%clk 0:00:06]}  Ra5 {[%clk 0:00:03]} 67. Bf7 {[%clk 0:00:05]}  Kf6 {[%clk 0:00:03]} 68. Bg6 {[%clk 0:00:05]}  Ra4+ {[%clk 0:00:04]} 69. Kf3 {[%clk 0:00:05]}  Kg5 {[%clk 0:00:03]} 70. Ke3 {[%clk 0:00:05]}  Rxg4 {[%clk 0:00:03]} 71. Kf3 {[%clk 0:00:05]}  Rf4+ {[%clk 0:00:04]} 72. Ke3 {[%clk 0:00:06]}  Ra4 {[%clk 0:00:04]} 73. Kf3 {[%clk 0:00:06]}  Ra3+ {[%clk 0:00:04]} 74. Ke4 {[%clk 0:00:06]}  Ra5 {[%clk 0:00:04]} 75. Kf3 {[%clk 0:00:06]}  Kf6 {[%clk 0:00:05]} 76. Kf4 {[%clk 0:00:06]}  Ra4+ {[%clk 0:00:05]} 77. Kf3 {[%clk 0:00:07]}  Ke5 {[%clk 0:00:06]} 78. Kg3 {[%clk 0:00:06]}  Ra1 {[%clk 0:00:05]} 79. Kf3 {[%clk 0:00:06]}  Rg1 {[%clk 0:00:05]} 80. Ke3 {[%clk 0:00:05]}  Rg3+ {[%clk 0:00:05]} 81. Kf2 {[%clk 0:00:06]}  Rg5 {[%clk 0:00:06]} 82. Kf3 {[%clk 0:00:06]}  Kf6 {[%clk 0:00:06]} 83. Kf4 {[%clk 0:00:06]}  Rg1 {[%clk 0:00:06]} 84. Kf3 {[%clk 0:00:07]}  Rb1 {[%clk 0:00:06]} 85. Kf4 {[%clk 0:00:07]}  Rb4+ {[%clk 0:00:07]} 86. Kf3 {[%clk 0:00:07]}  Rb6 {[%clk 0:00:07]} 87. Kf4 {[%clk 0:00:07]}  Rc6 {[%clk 0:00:08]} 88. Ke4 {[%clk 0:00:08]}  Ra6 {[%clk 0:00:08]} 89. Kf4 {[%clk 0:00:08]}  Ra5 {[%clk 0:00:08]} 90. Ke4 {[%clk 0:00:09]}  Re5+ {[%clk 0:00:08]} 91. Kf4 {[%clk 0:00:09]}  Re7 {[%clk 0:00:09]} 92. Kg4 {[%clk 0:00:09]}  Re4+ {[%clk 0:00:09]} 93. Kf3 {[%clk 0:00:10]}  Ke5 {[%clk 0:00:09]} 94. Kg3 {[%clk 0:00:10]}  Rf4 {[%clk 0:00:10]} 95. Kg2 {[%clk 0:00:09]}  Kf6 {[%clk 0:00:09]} 96. Kg3 {[%clk 0:00:09]}  Kg5 {[%clk 0:00:09]} 97. Kg2 {[%clk 0:00:10]}  Kg4 {[%clk 0:00:10]} 98. Bh7 {[%clk 0:00:08]}  Rb4 {[%clk 0:00:07]} 99. Bg6 {[%clk 0:00:09]}  Rb2+ {[%clk 0:00:07]} 100. Kf1 {[%clk 0:00:09]}  Kf3 {[%clk 0:00:07]} 101. Ke1 {[%clk 0:00:10]}  Rb6 {[%clk 0:00:07]} 102. Kd2 {[%clk 0:00:10]}  Rd6+ {[%clk 0:00:07]} 103. Ke1 {[%clk 0:00:10]}  Rb6 {[%clk 0:00:05]} 104. Kd2 {[%clk 0:00:10]}  Ra6 {[%clk 0:00:05]} 105. Ke1 {[%clk 0:00:10]}  Ke3 {[%clk 0:00:06]} 106. Kf1 {[%clk 0:00:10]}  Kf3 {[%clk 0:00:06]} 107. Ke1 {[%clk 0:00:11]}  Rd6 {[%clk 0:00:07]} 108. Be8 {[%clk 0:00:07]}  Kf4 {[%clk 0:00:05]} 109. Bg6 {[%clk 0:00:08]}  Kf3 {[%clk 0:00:05]} 110. Be8 {[%clk 0:00:08]}  Rd8 {[%clk 0:00:06]} 111. Bg6 {[%clk 0:00:08]}  Rd7 {[%clk 0:00:06]} 112. f6 {[%clk 0:00:08]}  Kf4 {[%clk 0:00:05]} 113. f7 {[%clk 0:00:08]}  Rd8 {[%clk 0:00:06]} 114. Ke2 {[%clk 0:00:09]}  Kg5 {[%clk 0:00:07]} 115. Ke3 {[%clk 0:00:09]}  Kf6 {[%clk 0:00:07]} 116. Kf4 {[%clk 0:00:09]}  Kg7 {[%clk 0:00:08]} 117. Kf5 {[%clk 0:00:09]}  Rd5+ {[%clk 0:00:08]} 118. Ke6 {[%clk 0:00:10]}  Ra5 {[%clk 0:00:08]} 119. Ke7 {[%clk 0:00:10]}  Ra8 {[%clk 0:00:09]} 120. Ke6 {[%clk 0:00:10]}  Ra7 {[%clk 0:00:09]} 121. Ke5 {[%clk 0:00:10]}  Re7+ {[%clk 0:00:09]} 122. Kf5 {[%clk 0:00:10]}  Rc7 {[%clk 0:00:09]} 123. Ke6 {[%clk 0:00:10]}  Ra7 {[%clk 0:00:09]} 124. Kf5 {[%clk 0:00:10]}  Ra6 {[%clk 0:00:09]} 125. Ke5 {[%clk 0:00:10]}  Rf6 {[%clk 0:00:09]} 126. Ke4 {[%clk 0:00:10]}  Kf8 {[%clk 0:00:09]} 127. Ke5 {[%clk 0:00:10]}  Rf1 {[%clk 0:00:10]} 128. Ke6 {[%clk 0:00:10]}  Re1+ {[%clk 0:00:10]} 129. Kf6 {[%clk 0:00:10]}  Re3 {[%clk 0:00:10]} 130. Kf5 {[%clk 0:00:10]}  Ke7 {[%clk 0:00:10]} 131. Kf4 {[%clk 0:00:10]}  Re6 {[%clk 0:00:10]} 132. Kf5 {[%clk 0:00:11]}  Rf6+ {[%clk 0:00:11]} 133. Ke5 {[%clk 0:00:11]}  Rf1 {[%clk 0:00:11]} 134. Ke4 {[%clk 0:00:11]}  Kd6 {[%clk 0:00:11]} 135. Ke3 {[%clk 0:00:10]}  Ke5 {[%clk 0:00:11]} 136. Ke2 {[%clk 0:00:10]}  Rf6 {[%clk 0:00:11]} 137. Ke3 {[%clk 0:00:10]}  Rf4 {[%clk 0:00:10]} 138. Ke2 {[%clk 0:00:08]}  Kd4 {[%clk 0:00:09]} 139. Kd2 {[%clk 0:00:08]}  Rf2+ {[%clk 0:00:09]} 140. Ke1 {[%clk 0:00:08]}  Ke3 {[%clk 0:00:10]} 141. Kd1 {[%clk 0:00:08]}  Rf6 {[%clk 0:00:10]} 142. Ke1 {[%clk 0:00:07]}  Rf4 {[%clk 0:00:09]} 143. Kd1 {[%clk 0:00:08]}  Rf2 {[%clk 0:00:07]} 144. Ke1 {[%clk 0:00:07]}  Ra2 {[%clk 0:00:07]} 145. Kd1 {[%clk 0:00:07]}  Ra8 {[%clk 0:00:07]} 146. Kc2 {[%clk 0:00:05]}  Rd8 {[%clk 0:00:06]} 147. Kc1 {[%clk 0:00:04]}  Kf4 {[%clk 0:00:06]} 148. Kc2 {[%clk 0:00:04]}  Ke5 {[%clk 0:00:07]} 149. Kc3 {[%clk 0:00:04]}  Kf6 {[%clk 0:00:07]} 150. Kc4 {[%clk 0:00:05]}  Ke7 {[%clk 0:00:07]} 151. Kc5 {[%clk 0:00:05]}  Rd6 {[%clk 0:00:05]} 152. Kc4 {[%clk 0:00:05]}  Rf6 {[%clk 0:00:04]} 153. Kd4 {[%clk 0:00:05]}  Rxf7 {[%clk 0:00:04]} 154. Bxf7 {[%clk 0:00:05]}  Kxf7 {[%clk 0:00:05]} 155. Ke5 {[%clk 0:00:05]}  Kg7 {[%clk 0:00:05]} 156. Ke6 {[%clk 0:00:05]}  Kh7 {[%clk 0:00:06]} 157. Kf7 {[%clk 0:00:05]}  Kh8 {[%clk 0:00:06]} 158. Kg6 {[%clk 0:00:05]}  Kg8 {[%clk 0:00:07]} 159. Kxh6 {[%clk 0:00:06]}  Kh8 {[%clk 0:00:08]} 160. Kg6 {[%clk 0:00:06]}  Kg8 {[%clk 0:00:09]} 161. Kf6 {[%clk 0:00:06]}  Kh8 {[%clk 0:00:10]} 162. Kg5 {[%clk 0:00:07]}  Kg8 {[%clk 0:00:11]} 163. h6 {[%clk 0:00:07]}  Kh8 {[%clk 0:00:12]} 164. Kh5 {[%clk 0:00:08]}  Kg8 {[%clk 0:00:13]} 165. Kg6 {[%clk 0:00:08]}  Kh8 {[%clk 0:00:14]} 166. h7 {[%clk 0:00:09]} 1/2-1/2


[Site "https://www.chess.com"]

[Event "Titled Tuesday Blitz August 08 Late 2023"]
[White "Tejedor Fuente, Enrique"]
[Black "Hnydiuk, Aleksander"]
[WhiteFideId "2299100"]
[BlackFideId "1109057"]
[WhiteElo "2730"]
[BlackElo "2542"]
[Result "0-1"]
[Round "8"]
[TimeControl "180+1"]
[Date "2023.08.08"]
[WhiteClock "0:00:00"]
[BlackClock "0:00:07"]
[Board "45"]

1. Nc3 {[%clk 0:02:56]}  d5 {[%clk 0:02:55]} 2. d4 {[%clk 0:02:55]}  Bf5 {[%clk 0:02:53]} 3. Bf4 {[%clk 0:02:53]}  e6 {[%clk 0:02:52]} 4. e3 {[%clk 0:02:53]}  Bb4 {[%clk 0:02:50]} 5. Ne2 {[%clk 0:02:52]}  Nf6 {[%clk 0:02:47]} 6. a3 {[%clk 0:02:52]}  Bd6 {[%clk 0:02:44]} 7. h3 {[%clk 0:02:49]}  O-O {[%clk 0:02:44]} 8. f3 {[%clk 0:02:46]}  c5 {[%clk 0:02:41]} 9. g4 {[%clk 0:02:45]}  Bg6 {[%clk 0:02:41]} 10. h4 {[%clk 0:02:46]}  h5 {[%clk 0:02:41]} 11. g5 {[%clk 0:02:46]}  cxd4 {[%clk 0:02:21]} 12. Bxd6 {[%clk 0:02:41]}  Qxd6 {[%clk 0:02:16]} 13. exd4 {[%clk 0:02:40]}  Nfd7 {[%clk 0:02:12]} 14. Qd2 {[%clk 0:02:40]}  Nc6 {[%clk 0:02:08]} 15. Nf4 {[%clk 0:02:40]}  e5 {[%clk 0:02:05]} 16. Nxg6 {[%clk 0:02:39]}  fxg6 {[%clk 0:02:03]} 17. dxe5 {[%clk 0:02:39]}  Qxe5+ {[%clk 0:01:57]} 18. Be2 {[%clk 0:02:36]}  Qg3+ {[%clk 0:01:46]} 19. Kd1 {[%clk 0:02:37]}  Rae8 {[%clk 0:01:37]} 20. Qxd5+ {[%clk 0:02:34]}  Kh8 {[%clk 0:01:37]} 21. Ne4 {[%clk 0:02:32]}  Qg2 {[%clk 0:01:33]} 22. Re1 {[%clk 0:02:29]}  Nde5 {[%clk 0:01:28]} 23. Kc1 {[%clk 0:02:18]}  Nxf3 {[%clk 0:01:21]} 24. Bxf3 {[%clk 0:02:17]}  Qxf3 {[%clk 0:01:19]} 25. Kb1 {[%clk 0:02:13]}  Re5 {[%clk 0:01:04]} 26. Qd3 {[%clk 0:02:12]}  Qf5 {[%clk 0:00:48]} 27. Ka2 {[%clk 0:00:49]}  Qe6+ {[%clk 0:00:43]} 28. Qb3 {[%clk 0:00:36]}  Qxb3+ {[%clk 0:00:39]} 29. cxb3 {[%clk 0:00:26]}  Rfe8 {[%clk 0:00:37]} 30. b4 {[%clk 0:00:25]}  Rxe4 {[%clk 0:00:36]} 31. Rf1 {[%clk 0:00:25]}  Rxh4 {[%clk 0:00:33]} 32. b5 {[%clk 0:00:25]}  Nd4 {[%clk 0:00:27]} 33. Rf7 {[%clk 0:00:24]}  Nxb5 {[%clk 0:00:23]} 34. Rxb7 {[%clk 0:00:23]}  a6 {[%clk 0:00:22]} 35. Rc1 {[%clk 0:00:20]}  Rh2 {[%clk 0:00:20]} 36. Ka1 {[%clk 0:00:16]}  h4 {[%clk 0:00:19]} 37. a4 {[%clk 0:00:15]}  Nd4 {[%clk 0:00:17]} 38. Rcc7 {[%clk 0:00:11]}  Nf5 {[%clk 0:00:15]} 39. Rb3 {[%clk 0:00:09]}  h3 {[%clk 0:00:12]} 40. Rcc3 {[%clk 0:00:09]}  Rh1+ {[%clk 0:00:09]} 41. Ka2 {[%clk 0:00:09]}  h2 {[%clk 0:00:09]} 42. Rh3+ {[%clk 0:00:09]}  Kg8 {[%clk 0:00:09]} 43. Rbd3 {[%clk 0:00:09]}  Re3 {[%clk 0:00:06]} 44. Rd8+ {[%clk 0:00:06]}  Kf7 {[%clk 0:00:06]} 45. Rhh8 {[%clk 0:00:06]}  Ne7 {[%clk 0:00:04]} 46. Rd4 {[%clk 0:00:03]}  Re5 {[%clk 0:00:03]} 47. Rf4+ {[%clk 0:00:02]}  Rf5 {[%clk 0:00:03]} 48. Rfh4 {[%clk 0:00:02]}  Rf2 {[%clk 0:00:03]} 49. Ka3 {[%clk 0:00:01]}  Ra1+ {[%clk 0:00:02]} 50. Kb3 {[%clk 0:00:01]}  Rb1 {[%clk 0:00:02]} 51. Kc3 {[%clk 0:00:01]}  Rbxb2 {[%clk 0:00:03]} 52. Rh3 {[%clk 0:00:01]}  Rbc2+ {[%clk 0:00:03]} 53. Kd4 {[%clk 0:00:01]}  Rfd2+ {[%clk 0:00:03]} 54. Ke5 {[%clk 0:00:02]}  Rc5+ {[%clk 0:00:03]} 55. Ke4 {[%clk 0:00:02]}  Rc4+ {[%clk 0:00:03]} 56. Ke3 {[%clk 0:00:02]}  Rdc2 {[%clk 0:00:03]} 57. Rxh2 {[%clk 0:00:01]}  R4c3+ {[%clk 0:00:03]} 58. Ke4 {[%clk 0:00:01]}  Rc4+ {[%clk 0:00:03]} 59. Kd3 {[%clk 0:00:01]}  Rxh2 {[%clk 0:00:04]} 60. Rxh2 {[%clk 0:00:01]}  Rxa4 {[%clk 0:00:05]} 61. Rf2+ {[%clk 0:00:01]}  Nf5 {[%clk 0:00:05]} 62. Rb2 {[%clk 0:00:01]}  Ra3+ {[%clk 0:00:06]} 63. Kc4 {[%clk 0:00:01]}  Rg3 {[%clk 0:00:07]} 64. Kd5 {[%clk 0:00:01]}  Ne7+ {[%clk 0:00:07]} 65. Kd6 {[%clk 0:00:01]}  Rd3+ {[%clk 0:00:07]} 66. Ke5 {[%clk 0:00:01]}  Rf3 {[%clk 0:00:07]} 67. Ke4 {[%clk 0:00:01]}  Rf5 {[%clk 0:00:07]} 68. Ra2 {[%clk 0:00:01]}  a5 {[%clk 0:00:06]} 69. Rg2 {[%clk 0:00:02]}  a4 {[%clk 0:00:06]} 70. Rg1 {[%clk 0:00:02]}  Ra5 {[%clk 0:00:06]} 71. Ra1 {[%clk 0:00:02]}  a3 {[%clk 0:00:06]} 72. Kd4 {[%clk 0:00:03]}  a2 {[%clk 0:00:06]} 73. Kc3 {[%clk 0:00:03]}  Ke6 {[%clk 0:00:06]} 74. Kb2 {[%clk 0:00:03]}  Nc6 {[%clk 0:00:06]} 75. Re1+ {[%clk 0:00:03]}  Ne5 {[%clk 0:00:06]} 76. Ka1 {[%clk 0:00:03]}  Kf5 {[%clk 0:00:07]} 77. Rf1+ {[%clk 0:00:04]}  Kxg5 {[%clk 0:00:07]} 78. Rd1 {[%clk 0:00:03]}  Kf5 {[%clk 0:00:07]} 79. Rf1+ {[%clk 0:00:03]}  Ke6 {[%clk 0:00:07]} 80. Rg1 {[%clk 0:00:04]}  Kf6 {[%clk 0:00:07]} 81. Rf1+ {[%clk 0:00:05]}  Ke7 {[%clk 0:00:07]} 82. Rg1 {[%clk 0:00:05]}  Ra6 {[%clk 0:00:07]} 83. Re1 {[%clk 0:00:05]}  Kf6 {[%clk 0:00:06]} 84. Rf1+ {[%clk 0:00:05]}  Kg5 {[%clk 0:00:07]} 85. Rg1+ {[%clk 0:00:05]}  Kf4 {[%clk 0:00:07]} 86. Rc1 {[%clk 0:00:05]}  Nd3 {[%clk 0:00:06]} 87. Rf1+ {[%clk 0:00:04]}  Ke3 {[%clk 0:00:06]} 88. Rf3+ {[%clk 0:00:03]}  Ke2 {[%clk 0:00:06]} 89. Re3+ {[%clk 0:00:02]}  Kd2 {[%clk 0:00:07]} 90. Re2+ {[%clk 0:00:02]}  Kc3 {[%clk 0:00:07]} 91. Rc2+ {[%clk 0:00:02]}  Kd4 {[%clk 0:00:07]} 92. Rc4+ {[%clk 0:00:02]}  Kd5 {[%clk 0:00:08]} 93. Rd4+ {[%clk 0:00:02]}  Kc5 {[%clk 0:00:07]} 94. Rd5+ {[%clk 0:00:00]}  Kb4 {[%clk 0:00:07]} 0-1


[Site "https://www.chess.com"]

[Event "Titled Tuesday Blitz August 08 Late 2023"]
[White "ArtemDyachuk"]
[Black "Fiorito, Joaquin"]
[BlackFideId "180173"]
[WhiteElo "2538"]
[BlackElo "2692"]
[Result "1-0"]
[Round "8"]
[TimeControl "180+1"]
[Date "2023.08.08"]
[WhiteClock "0:00:59"]
[BlackClock "0:00:00"]
[Board "48"]

1. e4 {[%clk 0:03:00]}  c5 {[%clk 0:03:00]} 2. Nf3 {[%clk 0:03:00]}  d6 {[%clk 0:03:00]} 3. d4 {[%clk 0:03:00]}  cxd4 {[%clk 0:03:01]} 4. Nxd4 {[%clk 0:03:00]}  Nf6 {[%clk 0:03:01]} 5. Nc3 {[%clk 0:03:00]}  a6 {[%clk 0:03:02]} 6. h3 {[%clk 0:02:58]}  e5 {[%clk 0:02:56]} 7. Nde2 {[%clk 0:02:57]}  b5 {[%clk 0:02:56]} 8. g4 {[%clk 0:02:49]}  Bb7 {[%clk 0:02:56]} 9. Bg2 {[%clk 0:02:47]}  Be7 {[%clk 0:02:56]} 10. O-O {[%clk 0:02:46]}  O-O {[%clk 0:02:57]} 11. Be3 {[%clk 0:02:44]}  Nbd7 {[%clk 0:02:55]} 12. f4 {[%clk 0:02:42]}  exf4 {[%clk 0:02:47]} 13. Bxf4 {[%clk 0:02:40]}  Nc5 {[%clk 0:02:45]} 14. Ng3 {[%clk 0:02:39]}  b4 {[%clk 0:02:41]} 15. Nd5 {[%clk 0:02:39]}  Nxd5 {[%clk 0:02:41]} 16. exd5 {[%clk 0:02:40]}  Bf6 {[%clk 0:02:41]} 17. Nf5 {[%clk 0:02:34]}  Bxb2 {[%clk 0:02:39]} 18. Rb1 {[%clk 0:02:34]}  Be5 {[%clk 0:02:40]} 19. Rxb4 {[%clk 0:02:31]}  Bc8 {[%clk 0:02:29]} 20. Bxe5 {[%clk 0:02:22]}  dxe5 {[%clk 0:02:20]} 21. d6 {[%clk 0:02:22]}  Ra7 {[%clk 0:02:21]} 22. Ne7+ {[%clk 0:02:21]}  Rxe7 {[%clk 0:02:20]} 23. dxe7 {[%clk 0:02:22]}  Qxe7 {[%clk 0:02:21]} 24. Qe2 {[%clk 0:02:20]}  Ne6 {[%clk 0:02:18]} 25. Rb8 {[%clk 0:02:14]}  f6 {[%clk 0:02:15]} 26. Rfb1 {[%clk 0:02:10]}  Qc5+ {[%clk 0:02:10]} 27. Qf2 {[%clk 0:02:07]}  Nd4 {[%clk 0:02:09]} 28. Ra8 {[%clk 0:01:49]}  f5 {[%clk 0:01:44]} 29. Rbb8 {[%clk 0:01:44]}  Ne2+ {[%clk 0:01:43]} 30. Kf1 {[%clk 0:01:35]}  Nd4 {[%clk 0:01:04]} 31. Bb7 {[%clk 0:01:09]}  Qc4+ {[%clk 0:01:04]} 32. Kg1 {[%clk 0:01:04]}  Ne2+ {[%clk 0:01:04]} 33. Kh2 {[%clk 0:01:03]}  h6 {[%clk 0:00:02]} 34. Rxc8 {[%clk 0:01:01]}  fxg4 {[%clk 0:00:00]} 35. Rxc4 {[%clk 0:00:59]} 1-0


[Site "https://www.chess.com"]